fUSD/lending_fUSD_20240629
["ID","MTS","AMOUNT","RATE_DAILY","PERIOD"]
[330641715,1719682244051,-719.02,0.00013891,3]
[330641717,1719682244061,-742.48,0.00013891,3]
[330641719,1719682244071,-500.0,0.00013891,3]
[330641721,1719682244080,-500.0,0.00013891,3]
[330641723,1719682244090,-8149.14,0.00013891,3]
[330641725,1719682244100,-500.0,0.00013891,3]
[330641727,1719682244109,-500.0,0.00013891,3]
[330641729,1719682244119,-2500.0,0.00013891,3]
[330641731,1719682244128,-500.0,0.00013891,3]
[330641733,1719682244138,-926.0679311,0.00013891,3]
[330641736,1719682244152,-1641.30252,0.00013891,3]
[330641738,1719682244164,-5001.2095489,0.00013891,3]
[330641740,1719682244174,-542.04,0.00013891,3]
[330641742,1719682244183,-500.0,0.00013891,3]
[330641744,1719682244193,-500.0,0.00013891,3]
[330641746,1719682244202,-500.0,0.00013891,3]
[330641748,1719682244211,-500.0,0.00013891,3]
[330641750,1719682244220,-1135.2,0.00013891,3]
[330641752,1719682244229,-514.50076484,0.00013891,3]
[330641754,1719682244238,-519.48,0.00013891,3]
[330641756,1719682244248,-500.0,0.00013891,3]
[330641758,1719682244257,-500.0,0.00013891,3]
[330641760,1719682244267,-537.68,0.00013891,3]
[330641762,1719682244276,-8855.46,0.00013891,3]
[330641763,1719682244285,-617.36,0.00013891,3]
[330641765,1719682244295,-932.81,0.00013891,3]
[330641767,1719682244304,-500.0,0.00013891,3]
[330641769,1719682244313,-1948.87007166,0.00013891,3]
[330641771,1719682244325,-3017.256,0.00013891,3]
[330641772,1719682244335,-1453.57392834,0.00013891,3]
[330641773,1719682244344,-500.0,0.00013891,2]
[330641774,1719682244354,-500.0,0.00013891,3]
[330641775,1719682244363,-500.0,0.00013891,3]
[330641776,1719682244372,-426.85090566,0.00013891,3]
[330641777,1719682244385,-503.4787228,0.00013891,3]
[330641782,1719682244430,-682.14037154,0.00013891,3]
[330641784,1719682244439,-534.67,0.00013891,3]
[330641785,1719682244448,-265.73,0.00013891,3]
[330641788,1719682244461,-1112.95,0.00013891,3]
[330641790,1719682244471,-3088.89,0.00013891,3]
[330641791,1719682244480,-1230.73,0.00013891,3]
[330641793,1719682244489,-500.0,0.00013891,3]
[330641795,1719682244498,-502.75267209,0.00013891,3]
[330641797,1719682244507,-500.0,0.00013891,3]
[330641799,1719682244517,-500.0,0.00013891,3]
[330641801,1719682244526,-500.0,0.00013891,3]
[330641803,1719682244535,-500.0,0.00013891,3]
[330641805,1719682244544,-815.99489407,0.00013891,3]
[330641807,1719682244557,-481.77510593,0.00013891,3]
[330641809,1719682244566,-500.0,0.00013891,3]
[330641811,1719682244576,-500.0,0.00013891,3]
[330641813,1719682244585,-1768.22489407,0.00013891,3]
[330641816,1719682244596,-4199.72311746,0.00013891,3]
[330641818,1719682244607,-2300.55198847,0.00013891,3]
[330641820,1719682244618,-525.11,0.00013891,3]
[330641822,1719682244628,-500.0,0.00013891,2]
[330641824,1719682244638,-500.0,0.00013891,3]
[330641826,1719682244649,-2223.39,0.00013891,3]
[330641828,1719682244661,-781.66,0.00013891,3]
[330641830,1719682244674,-500.0,0.00013891,3]
[330641832,1719682244683,-1920.14,0.00013891,3]
[330641834,1719682244694,-1510.99,0.00013891,3]
[330641836,1719682244704,-500.0,0.00013891,3]
[330641838,1719682244713,-2358.36,0.00013891,3]
[330641840,1719682244722,-516.93,0.00013891,3]
[330641842,1719682244734,-228.83329969,0.00013891,3]
[330641844,1719682244746,-1530.81670031,0.00013891,3]
[330641846,1719682244755,-973.52,0.00013891,3]
[330641848,1719682244765,-500.0,0.00013891,3]
[330641850,1719682244774,-1157.19,0.00013891,3]
[330641852,1719682244783,-534.37,0.00013891,3]
[330641854,1719682244793,-614.0,0.00013891,3]
[330641856,1719682244802,-1763.55,0.00013891,3]
[330641858,1719682244811,-500.0,0.00013891,3]
[330641860,1719682244820,-500.0,0.00013891,3]
[330641862,1719682244830,-502.73736559,0.00013891,3]
[330641864,1719682244839,-1587.35,0.00013891,3]
[330641866,1719682244848,-500.0,0.00013891,3]
[330641868,1719682244857,-876.63,0.00013891,3]
[330641870,1719682244866,-579.58,0.00013891,3]
[330641872,1719682244876,-500.0,0.00013891,3]
[330641874,1719682244886,-500.0,0.00013891,3]
[330641876,1719682244897,-2359.13,0.00013891,3]
[330641878,1719682244907,-500.89123479,0.00013891,3]
[330641880,1719682244918,-689.45,0.00013891,3]
[330641882,1719682244927,-1297.11,0.00013891,3]
[330641884,1719682244937,-500.0,0.00013891,3]
[330641886,1719682244946,-500.0,0.00013891,3]
[330641888,1719682244955,-500.0,0.00013891,3]
[330641890,1719682244965,-595.48,0.00013891,3]
[330641891,1719682244974,-500.0,0.00013891,3]
[330641893,1719682244984,-424.31114606,0.00013891,3]
[330641895,1719682244997,-75.68885394,0.00013891,3]
[330641896,1719682245007,-500.0,0.00013891,3]
[330641898,1719682245016,-1310.14,0.00013891,3]
[330641899,1719682245026,-500.0,0.00013891,3]
[330641901,1719682245035,-1456.61,0.00013891,3]
[330641902,1719682245045,-500.0,0.00013891,3]
[330641904,1719682245054,-700.99,0.00013891,3]
[330641905,1719682245063,-429.30262711,0.00013891,3]
[330641907,1719682245076,-70.69737289,0.00013891,3]
[330641908,1719682245086,-2126.03,0.00013891,3]
[330641910,1719682245095,-500.0,0.00013891,3]
[330641911,1719682245104,-514.35,0.00013891,3]
[330641913,1719682245113,-1082.72,0.00013891,3]
[330641915,1719682245123,-500.0,0.00013891,3]
[330641916,1719682245132,-1431.96,0.00013891,3]
[330641918,1719682245141,-500.0,0.00013891,3]
[330641919,1719682245152,-683.45,0.00013891,3]
[330641921,1719682245161,-500.0,0.00013891,3]
[330641922,1719682245170,-2389.85,0.00013891,3]
[330641924,1719682245179,-4117.45,0.00013891,3]
[330641926,1719682245188,-500.0,0.00013891,3]
[330641927,1719682245197,-945.16,0.00013891,3]
[330641929,1719682245206,-500.0,0.00013891,3]
[330641930,1719682245215,-2132.38,0.00013891,3]
[330641932,1719682245224,-500.0,0.00013891,3]
[330641933,1719682245233,-957.18,0.00013891,3]
[330641935,1719682245243,-500.0,0.00013891,3]
[330641937,1719682245252,-703.61,0.00013891,3]
[330641938,1719682245261,-1896.15,0.00013891,3]
[330641940,1719682245271,-852.63,0.00013891,3]
[330641942,1719682245280,-892.3,0.00013891,3]
[330641943,1719682245290,-500.0,0.00013891,3]
[330641945,1719682245299,-500.0,0.00013891,3]
[330641947,1719682245308,-500.0,0.00013891,3]
[330641948,1719682245318,-500.0,0.00013891,3]
[330641950,1719682245327,-1733.22,0.00013891,3]
[330641952,1719682245337,-500.0,0.00013891,3]
[330641953,1719682245346,-534.12,0.00013891,3]
[330641955,1719682245355,-500.0,0.00013891,3]
[330641956,1719682245364,-500.0,0.00013891,3]
[330641958,1719682245373,-500.0,0.00013891,3]
[330641960,1719682245382,-2063.1,0.00013891,3]
[330641961,1719682245391,-500.0,0.00013891,3]
[330641963,1719682245401,-382.46627297,0.00013891,3]
[330641965,1719682245411,-1120.58,0.00013891,3]
[330641966,1719682245420,-594.55,0.00013891,3]
[330641968,1719682245429,-5183.9152254,0.00013891,3]
[330641970,1719682245441,-1683.5747746,0.00013891,3]
[330641971,1719682245451,-833.41,0.00013891,3]
[330641973,1719682245460,-566.28,0.00013891,3]
[330641975,1719682245469,-54.33009583,0.00013891,3]
[330641976,1719682245480,-445.66990417,0.00013891,3]
[330641978,1719682245489,-1380.84,0.00013891,3]
[330641980,1719682245499,-1775.70205099,0.00013891,3]
[330641981,1719682245510,-1435.24794901,0.00013891,3]
[330641982,1719682245519,-500.0,0.00013891,3]
[330641983,1719682245528,-2193.39191982,0.00013891,3]
[330641984,1719682245538,-1441.61808018,0.00013891,3]
[330641985,1719682245547,-2491.74655926,0.00013891,3]
[330641986,1719682245559,-486.61344074,0.00013891,3]
[330641987,1719682245568,-1427.6,0.00013891,3]
[330641988,1719682245577,-646.18,0.00013891,3]
[330641989,1719682245586,-752.38,0.00013891,3]
[330641990,1719682245597,-1074.55,0.00013891,2]
[330641991,1719682245607,-44.94494952,0.00013891,3]
[330641992,1719682245620,-455.05505048,0.00013891,3]
[330641993,1719682245630,-854.84,0.00013891,3]
[330641994,1719682245639,-665.94,0.00013891,3]
[330641995,1719682245652,-500.0,0.00013891,3]
[330641996,1719682245662,-4282.13245007,0.00013891,3]
[330641997,1719682245675,-89.30754993,0.00013891,3]
[330641998,1719682245684,-934.0,0.00013891,3]
[330641999,1719682245693,-500.0,0.00013891,3]
[330642000,1719682245703,-500.0,0.00013891,3]
[330642001,1719682245712,-500.0,0.00013891,3]
[330642002,1719682245722,-1492.47,0.00013891,3]
[330642003,1719682245732,-500.0,0.00013891,3]
[330642004,1719682245741,-813.3,0.00013891,3]
[330642005,1719682245751,-979.78,0.00013891,3]
[330642006,1719682245761,-500.0,0.00013891,3]
[330642007,1719682245770,-500.0,0.00013891,3]
[330642008,1719682245780,-2626.03,0.00013891,3]
[330642009,1719682245789,-500.0,0.00013891,3]
[330642010,1719682245798,-500.0,0.00013891,3]
[330642011,1719682245808,-2036.71,0.00013891,3]
[330642012,1719682245817,-556.89,0.00013891,3]
[330642013,1719682245826,-500.0,0.00013891,3]
[330642014,1719682245836,-500.0,0.00013891,3]
[330642015,1719682245846,-514.64,0.00013891,3]
[330642016,1719682245855,-1229.93,0.00013891,3]
[330642017,1719682245865,-888.18,0.00013891,3]
[330642018,1719682245874,-1747.79,0.00013891,3]
[330642019,1719682245883,-500.0,0.00013891,3]
[330642020,1719682245892,-500.0,0.00013891,3]
[330642021,1719682245902,-2545.32,0.00013891,3]
[330642022,1719682245911,-500.0,0.00013891,3]
[330642023,1719682245921,-806.33,0.00013891,3]
[330642024,1719682245930,-3597.44,0.00013891,3]
[330642025,1719682245939,-1247.15,0.00013891,3]
[330642026,1719682245948,-622.64,0.00013891,3]
[330642027,1719682245958,-3361.41,0.00013891,3]
[330642028,1719682245967,-500.0,0.00013891,3]
[330642029,1719682245977,-1120.07,0.00013891,3]
[330642030,1719682245986,-500.0,0.00013891,3]
[330642031,1719682245995,-500.0,0.00013891,3]
[330642032,1719682246004,-500.0,0.00013891,3]
[330642033,1719682246014,-3285.8403052,0.00013891,3]
[330642034,1719682246026,-1617.592005,0.00013891,3]
[330642035,1719682246038,-1363.68834929,0.00013891,3]
[330642036,1719682246049,-2023.404,0.00013891,3]
[330642037,1719682246072,-778.64096614,0.00013891,3]
[330642038,1719682246083,-1239.14437437,0.00013891,3]
[330642039,1719682246093,-736.57,0.00013891,3]
[330642040,1719682246103,-663.98,0.00013891,3]
[330642041,1719682246112,-1761.01,0.00013891,2]
[330642042,1719682246121,-500.0,0.00013891,3]
[330642043,1719682246131,-543.31,0.00013891,3]
[330642044,1719682246140,-1815.83,0.00013891,3]
[330642045,1719682246149,-1333.97,0.00013891,3]
[330642046,1719682246158,-500.0,0.00013891,3]
[330642047,1719682246168,-412.83388998,0.00013891,3]
[330642048,1719682246177,-500.0,0.00013891,3]
[330642049,1719682246186,-523.12,0.00013891,3]
[330642050,1719682246196,-1661.05,0.00013891,3]
[330642051,1719682246206,-1329.3,0.00013891,3]
[330642052,1719682246215,-500.0,0.00013891,3]
[330642053,1719682246224,-3932.45,0.00013891,3]
[330642054,1719682246234,-500.0,0.00013891,3]
[330642066,1719682246362,-500.0,0.00013891,3]
[330642068,1719682246380,-500.0,0.00013891,3]
[330642070,1719682246390,-500.0,0.00013891,3]
[330642072,1719682246401,-1973.06,0.00013891,3]
[330642074,1719682246410,-500.0,0.00013891,3]
[330642076,1719682246420,-500.0,0.00013891,3]
[330642078,1719682246430,-500.0,0.00013891,3]
[330642080,1719682246439,-1521.01,0.00013891,3]
[330642082,1719682246449,-500.0,0.00013891,3]
[330642084,1719682246458,-500.0,0.00013891,3]
[330642086,1719682246469,-1354.86,0.00013891,3]
[330642088,1719682246478,-1403.3,0.00013891,3]
[330642090,1719682246488,-1115.4,0.00013891,3]
[330642092,1719682246497,-653.18,0.00013891,3]
[330642094,1719682246506,-228.52147932,0.00013891,3]
[330642161,1719682247136,-271.47852068,0.00013891,3]
[330642163,1719682247147,-501.52910303,0.00013891,3]
[330642165,1719682247156,-678.96,0.00013891,3]
[330642167,1719682247165,-500.0,0.00013891,3]
[330642169,1719682247175,-500.0,0.00013891,3]
[330642171,1719682247184,-154.85720764,0.00013891,3]
[330642173,1719682247195,-345.14279236,0.00013891,3]
[330642175,1719682247204,-302.80238566,0.00013891,3]
[330642178,1719682247216,-203.67761434,0.00013891,3]
[330642180,1719682247225,-119.17256573,0.00013891,3]
[330642187,1719682247281,-843.15773648,0.00013891,3]
[330642193,1719682247328,-1301.70969779,0.00013891,3]
[330642195,1719682247337,-500.0,0.00013891,3]
[330642197,1719682247347,-365.68000958,0.00013891,3]
[330642199,1719682247359,-134.31999042,0.00013891,3]
[330642201,1719682247368,-731.46,0.00013891,3]
[330642203,1719682247378,-874.0,0.00013891,3]
[330642205,1719682247388,-813.65,0.00013891,3]
[330642207,1719682247397,-972.23,0.00013891,3]
[330642209,1719682247407,-637.89272979,0.00013891,3]
[330642220,1719682247585,-4323.15727021,0.00013891,3]
[330642222,1719682247595,-500.0,0.00013891,3]
[330642224,1719682247604,-1196.86,0.00013891,3]
[330642226,1719682247613,-1126.78,0.00013891,3]
[330642228,1719682247624,-718.34,0.00013891,3]
[330642230,1719682247634,-1845.16,0.00013891,3]
[330642232,1719682247643,-500.0,0.00013891,3]
[330642234,1719682247658,-600.54,0.00013891,3]
[330642236,1719682247668,-760.87,0.00013891,3]
[330642238,1719682247678,-688.02,0.00013891,3]
[330642240,1719682247687,-500.0,0.00013891,3]
[330642242,1719682247697,-539.55,0.00013891,3]
[330642244,1719682247706,-1588.82,0.00013891,3]
[330642246,1719682247715,-500.0,0.00013891,3]
[330642248,1719682247725,-500.0,0.00013891,3]
[330642250,1719682247734,-1136.77,0.00013891,3]
[330642252,1719682247745,-1004.94,0.00013891,3]
[330642254,1719682247755,-517.5,0.00013891,3]
[330642255,1719682247764,-3934.18,0.00013891,3]
[330642256,1719682247775,-500.92313337,0.00013891,3]
[330642257,1719682247784,-1345.45,0.00013891,3]
[330642258,1719682247794,-500.0,0.00013891,3]
[330642259,1719682247803,-548.53,0.00013891,3]
[330642260,1719682247813,-1338.44,0.00013891,3]
[330642261,1719682247823,-500.0,0.00013891,3]
[330642262,1719682247833,-3756.7,0.00013891,3]
[330642263,1719682247842,-500.0,0.00013891,3]
[330642264,1719682247852,-1930.47,0.00013891,3]
[330642265,1719682247861,-500.0,0.00013891,3]
[330642266,1719682247870,-297.06279403,0.00013891,3]
[330642267,1719682247879,-2677.43,0.00013891,3]
[330642268,1719682247888,-1375.85,0.00013891,3]
[330642269,1719682247899,-4074.56,0.00013891,3]
[330642270,1719682247909,-500.0,0.00013891,3]
[330642271,1719682247918,-650.0,0.00013892,2]
[330642272,1719682247931,-814.22,0.00013892,3]
[330642273,1719682247941,-1690.67,0.00013892,3]
[330642274,1719682247951,-500.0,0.00013892,3]
[330642275,1719682247961,-1469.52,0.00013892,3]
[330642276,1719682247971,-500.0,0.00013892,3]
[330642277,1719682247980,-500.0,0.00013892,3]
[330642278,1719682247989,-500.0,0.00013892,3]
[330642279,1719682247999,-732.45,0.00013892,3]
[330642280,1719682248009,-500.0,0.00013892,3]
[330642281,1719682248018,-500.0,0.00013892,3]
[330642282,1719682248028,-943.36,0.00013892,3]
[330642283,1719682248037,-1064.92,0.00013892,3]
[330642284,1719682248046,-500.0,0.00013892,3]
[330642285,1719682248056,-500.0,0.00013892,3]
[330642286,1719682248065,-538.76720445,0.00013892,3]
[330642287,1719682248075,-501.64020373,0.00013892,3]
[330642288,1719682248084,-1046.97,0.00013892,3]
[330642289,1719682248093,-527.49,0.00013892,3]
[330642290,1719682248103,-1315.95,0.00013892,3]
[330642291,1719682248112,-436.21169153,0.00013892,3]
[330642292,1719682248122,-500.0,0.00013892,3]
[330642293,1719682248131,-500.0,0.00013892,3]
[330642294,1719682248141,-500.0,0.00013892,3]
[330642295,1719682248155,-500.0,0.00013892,3]
[330642296,1719682248164,-1615.54,0.00013892,3]
[330642297,1719682248175,-500.0,0.00013892,3]
[330642298,1719682248184,-1142.73,0.00013892,3]
[330642299,1719682248193,-500.0,0.00013892,3]
[330642300,1719682248203,-500.0,0.00013892,3]
[330642301,1719682248212,-500.0,0.00013892,3]
[330642302,1719682248221,-720.44,0.00013892,3]
[330642303,1719682248231,-500.0,0.00013892,3]
[330642304,1719682248240,-509.54,0.00013892,3]
[330642305,1719682248250,-502.57,0.00013892,3]
[330642306,1719682248259,-500.0,0.00013892,3]
[330642307,1719682248574,-643.42,0.00013892,3]
[330642308,1719682248674,-500.0,0.00013892,3]
[330642309,1719682248684,-790.46,0.00013892,3]
[330642310,1719682248695,-1261.88,0.00013892,3]
[330642311,1719682248704,-600.28,0.00013892,3]
[330642312,1719682248713,-393.54665423,0.00013892,3]
[330642313,1719682248723,-1139.81,0.00013892,3]
[330642314,1719682248735,-500.0,0.00013892,3]
[330642315,1719682248745,-1553.47,0.00013892,3]
[330642316,1719682248755,-500.0,0.00013892,3]
[330642317,1719682248765,-250.94053063,0.00013892,3]
[330642318,1719682248774,-1217.06,0.00013892,3]
[330642319,1719682248784,-1281.49,0.00013892,3]
[330642320,1719682248793,-500.0,0.00013892,3]
[330642321,1719682248803,-500.0,0.00013892,3]
[330642322,1719682248812,-500.0,0.00013892,3]
[330642323,1719682248821,-500.0,0.00013892,3]
[330642324,1719682248831,-500.0,0.00013892,3]
[330642325,1719682248840,-500.0,0.00013892,3]
[330642326,1719682248850,-500.0,0.00013892,3]
[330642327,1719682248859,-500.0,0.00013892,3]
[330642328,1719682248869,-1100.99,0.00013892,3]
[330642329,1719682248879,-500.0,0.00013892,3]
[330642330,1719682248888,-500.0,0.00013892,3]
[330642331,1719682248898,-617.23,0.00013892,3]
[330642332,1719682248907,-500.0,0.00013892,3]
[330642333,1719682248916,-500.0,0.00013892,3]
[330642334,1719682248926,-512.56,0.00013892,3]
[330642335,1719682248935,-938.53,0.00013892,3]
[330642336,1719682248944,-500.0,0.00013892,3]
[330642337,1719682248954,-500.0,0.00013892,3]
[330642338,1719682248963,-563.47,0.00013892,3]
[330642339,1719682248972,-1750.51,0.00013892,3]
[330642340,1719682248982,-691.4,0.00013892,3]
[330642341,1719682248991,-500.0,0.00013892,3]
[330642342,1719682249001,-515.43,0.00013892,3]
[330642343,1719682249011,-500.0,0.00013892,3]
[330642344,1719682249020,-796.27,0.00013892,3]
[330642345,1719682249030,-500.0,0.00013892,3]
[330642346,1719682249039,-1903.76,0.00013892,3]
[330642347,1719682249049,-500.0,0.00013892,3]
[330642348,1719682249059,-552.04,0.00013892,3]
[330642349,1719682249068,-500.0,0.00013892,3]
[330642350,1719682249077,-500.0,0.00013892,3]
[330642351,1719682249087,-2756.46,0.00013892,3]
[330642352,1719682249096,-532.36,0.00013892,3]
[330642353,1719682249107,-1133.22,0.00013892,3]
[330642354,1719682249117,-1056.26,0.00013892,3]
[330642355,1719682249126,-500.0,0.00013892,3]
[330642356,1719682249136,-1116.03,0.00013892,3]
[330642357,1719682249145,-519.0272431,0.00013892,3]
[330642358,1719682249155,-1015.43,0.00013892,3]
[330642359,1719682249165,-941.65,0.00013892,3]
[330642360,1719682249174,-1382.02,0.00013892,3]
[330642361,1719682249183,-500.0,0.00013892,3]
[330642362,1719682249193,-500.0,0.00013892,3]
[330642363,1719682249203,-500.0,0.00013892,3]
[330642364,1719682249213,-500.0,0.00013892,3]
[330642365,1719682249222,-500.0,0.00013892,3]
[330642366,1719682249232,-500.0,0.00013892,3]
[330642367,1719682249241,-500.0,0.00013892,3]
[330642368,1719682249251,-500.0,0.00013892,3]
[330642369,1719682249261,-500.0,0.00013892,3]
[330642370,1719682249270,-1907.35,0.00013892,3]
[330642371,1719682249280,-500.0,0.00013892,3]
[330642372,1719682249290,-500.0,0.00013892,3]
[330642373,1719682249300,-2229.28,0.00013892,3]
[330642374,1719682249309,-500.0,0.00013892,3]
[330642375,1719682249319,-793.16,0.00013892,3]
[330642376,1719682249328,-1114.51,0.00013892,3]
[330642377,1719682249338,-1806.19,0.00013892,3]
[330642378,1719682249348,-500.0,0.00013892,3]
[330642379,1719682249357,-500.0,0.00013892,3]
[330642380,1719682249367,-500.0,0.00013892,3]
[330642381,1719682249377,-500.0,0.00013892,3]
[330642382,1719682249386,-2089.96,0.00013892,3]
[330642383,1719682249396,-1296.55,0.00013892,3]
[330642384,1719682249412,-1224.3,0.00013892,3]
[330642385,1719682249422,-552.13,0.00013892,3]
[330642386,1719682249432,-661.44,0.00013892,3]
[330642387,1719682249441,-500.0,0.00013892,3]
[330642388,1719682249451,-1853.12,0.00013892,3]
[330642389,1719682249461,-1366.89,0.00013892,3]
[330642390,1719682249470,-670.33,0.00013892,3]
[330642391,1719682249481,-2071.19,0.00013892,3]
[330642392,1719682249491,-788.82,0.00013892,3]
[330642393,1719682249500,-1538.31,0.00013892,3]
[330642394,1719682249510,-1485.26,0.00013892,3]
[330642395,1719682249520,-500.0,0.00013892,3]
[330642396,1719682249530,-1727.76,0.00013892,3]
[330642397,1719682249540,-262.55223848,0.00013892,3]
[330642398,1719682249550,-1588.23,0.00013892,3]
[330642399,1719682249559,-500.0,0.00013892,3]
[330642400,1719682249569,-2464.28,0.00013892,3]
[330642401,1719682249580,-500.0,0.00013892,3]
[330642402,1719682249590,-500.0,0.00013892,3]
[330642403,1719682249599,-712.36,0.00013892,3]
[330642404,1719682249610,-500.0,0.00013892,3]
[330642405,1719682249622,-505.94,0.00013892,3]
[330642406,1719682249632,-542.76,0.00013892,3]
[330642407,1719682249642,-1219.7,0.00013892,3]
[330642408,1719682249656,-500.0,0.00013892,3]
[330642409,1719682249665,-965.89,0.00013892,3]
[330642410,1719682249675,-1701.69,0.00013892,3]
[330642411,1719682249685,-662.73,0.00013892,3]
[330642412,1719682249694,-581.64,0.00013892,3]
[330642413,1719682249704,-1315.34,0.00013892,3]
[330642414,1719682249714,-959.55,0.00013892,3]
[330642415,1719682249724,-1840.51,0.00013892,3]
[330642416,1719682249734,-1053.6,0.00013892,3]
[330642417,1719682249745,-2225.87,0.00013892,3]
[330642418,1719682249755,-863.3,0.00013892,3]
[330642419,1719682249766,-2491.4,0.00013892,3]
[330642420,1719682249776,-500.0,0.00013892,3]
[330642421,1719682249786,-852.46,0.00013892,3]
[330642422,1719682249795,-500.0,0.00013892,3]
[330642423,1719682249805,-2258.71,0.00013892,3]
[330642424,1719682249815,-500.0,0.00013892,3]
[330642425,1719682249825,-500.0,0.00013892,3]
[330642426,1719682249835,-1668.38,0.00013892,3]
[330642427,1719682249845,-2655.08,0.00013892,3]
[330642428,1719682249855,-500.0,0.00013892,3]
[330642429,1719682249866,-500.0,0.00013892,2]
[330642430,1719682249876,-797.94,0.00013892,3]
[330642431,1719682249886,-500.0,0.00013892,3]
[330642432,1719682249896,-500.0,0.00013892,3]
[330642433,1719682249907,-765.8,0.00013892,3]
[330642434,1719682249917,-500.0,0.00013892,3]
[330642435,1719682249930,-740.98,0.00013892,3]
[330642436,1719682249940,-631.45,0.00013892,3]
[330642437,1719682249950,-2510.75,0.00013892,3]
[330642438,1719682249960,-500.0,0.00013892,3]
[330642439,1719682249970,-2207.72,0.00013892,3]
[330642440,1719682249979,-500.0,0.00013892,3]
[330642441,1719682249990,-500.0,0.00013892,3]
[330642442,1719682250000,-1896.29,0.00013892,3]
[330642443,1719682250010,-2205.54,0.00013892,3]
[330642444,1719682250020,-1540.55,0.00013892,3]
[330642445,1719682250033,-867.84,0.00013892,3]
[330642446,1719682250043,-500.0,0.00013892,3]
[330642447,1719682250054,-1063.89,0.00013892,3]
[330642448,1719682250065,-529.96,0.00013892,3]
[330642449,1719682250076,-500.0,0.00013892,3]
[330642450,1719682250087,-1299.31,0.00013892,3]
[330642451,1719682250097,-1925.0579718,0.00013892,3]
[330642452,1719682250115,-143.3420282,0.00013892,3]
[330642453,1719682250125,-396.83797185,0.00013892,3]
[330642454,1719682251248,-523.43,0.00013891,3]
[330642455,1719682251258,-103.16202815,0.00013892,3]
[330642456,1719682251268,-500.0,0.00013892,3]
[330642457,1719682251278,-1155.85,0.00013892,3]
[330642458,1719682251288,-10568.0,0.00013893,3]
[330642459,1719682251298,-2195.05,0.00013893,3]
[330642460,1719682251307,-1795.73,0.00013893,3]
[330642461,1719682251318,-3547.67,0.00013893,3]
[330642462,1719682251330,-371.418609,0.00013893,2]
[330642463,1719682251340,-808.97,0.00013893,3]
[330642464,1719682251350,-371.418609,0.00013893,2]
[330642465,1719682251360,-1973.08,0.00013893,3]
[330642466,1719682251371,-4988.08,0.00013893,3]
[330642467,1719682251381,-675.56,0.00013893,3]
[330642468,1719682251391,-3077.09,0.00013893,3]
[330642469,1719682251401,-635.31,0.00013893,3]
[330642470,1719682251415,-5189.58,0.00013893,3]
[330642471,1719682251426,-1179.45,0.00013893,3]
[330642472,1719682251436,-500.0,0.00013893,3]
[330642473,1719682251447,-1017.47,0.00013893,3]
[330642474,1719682251456,-3771.55,0.00013893,3]
[330642475,1719682251466,-500.0,0.00013893,3]
[330642476,1719682251475,-547.38,0.00013893,3]
[330642477,1719682251485,-11637.33,0.00013893,3]
[330642478,1719682251495,-500.0,0.00013893,3]
[330642479,1719682251504,-2070.41,0.00013893,3]
[330642480,1719682251515,-1813.18,0.00013893,3]
[330642481,1719682251524,-762.56,0.00013893,3]